[Event "January 2 Early 2024"]
[Site "https://www.chess.com"]
[Date "2024.01.02"]
[Round "1"]
[White "CamillaEffect"]
[Black "SkinnyPuppy8"]
[Result "1-0"]
[Board "211"]
[TimeControl "180+1"]
[WhiteElo "2634"]
[BlackElo "2289"]
[WhiteClock "0:00:05"]
[BlackClock "0:00:06"]

1. e4 {[%clk 0:03:00]}  d5 {[%clk 0:02:59]} 2. exd5 {[%clk 0:03:00]}  Nf6 {[%clk 0:02:59]} 3. d4 {[%clk 0:02:59]}  Bg4 {[%clk 0:02:59]} 4. Nf3 {[%clk 0:02:52]}  Qxd5 {[%clk 0:02:41]} 5. Be2 {[%clk 0:02:49]}  e6 {[%clk 0:02:41]} 6. c4 {[%clk 0:02:47]}  Bb4+ {[%clk 0:02:40]} 7. Nc3 {[%clk 0:02:23]}  Bxc3+ {[%clk 0:02:38]} 8. bxc3 {[%clk 0:02:22]}  Qd6 {[%clk 0:02:34]} 9. h3 {[%clk 0:02:13]}  Bh5 {[%clk 0:02:30]} 10. a4 {[%clk 0:02:13]}  Nbd7 {[%clk 0:02:15]} 11. O-O {[%clk 0:02:07]}  b6 {[%clk 0:02:05]} 12. a5 {[%clk 0:01:58]}  O-O {[%clk 0:02:04]} 13. Qb3 {[%clk 0:01:25]}  c5 {[%clk 0:01:51]} 14. Rd1 {[%clk 0:01:17]}  Rfd8 {[%clk 0:01:39]} 15. Bg5 {[%clk 0:01:06]}  Qc7 {[%clk 0:01:24]} 16. Bh4 {[%clk 0:00:56]}  h6 {[%clk 0:00:56]} 17. d5 {[%clk 0:00:48]}  Bxf3 {[%clk 0:00:38]} 18. Bxf3 {[%clk 0:00:46]}  Ne5 {[%clk 0:00:38]} 19. Be2 {[%clk 0:00:40]}  exd5 {[%clk 0:00:36]} 20. Bxf6 {[%clk 0:00:33]}  gxf6 {[%clk 0:00:34]} 21. cxd5 {[%clk 0:00:33]}  c4 {[%clk 0:00:34]} 22. Qc2 {[%clk 0:00:27]}  Qc5 {[%clk 0:00:27]} 23. Qf5 {[%clk 0:00:17]}  Kg7 {[%clk 0:00:26]} 24. Bf3 {[%clk 0:00:15]}  b5 {[%clk 0:00:19]} 25. d6 {[%clk 0:00:13]}  Rab8 {[%clk 0:00:19]} 26. Rd5 {[%clk 0:00:12]}  Qc8 {[%clk 0:00:18]} 27. Rxe5 {[%clk 0:00:09]}  fxe5 {[%clk 0:00:17]} 28. Qxe5+ {[%clk 0:00:10]}  f6 {[%clk 0:00:17]} 29. Qe7+ {[%clk 0:00:10]}  Kh8 {[%clk 0:00:14]} 30. Qxf6+ {[%clk 0:00:10]}  Kh7 {[%clk 0:00:11]} 31. Be4+ {[%clk 0:00:09]}  Kg8 {[%clk 0:00:10]} 32. Qg6+ {[%clk 0:00:09]}  Kf8 {[%clk 0:00:08]} 33. Qxh6+ {[%clk 0:00:08]}  Kf7 {[%clk 0:00:06]} 34. Qh7+ {[%clk 0:00:06]}  Kf6 {[%clk 0:00:06]} 35. Qe7# {[%clk 0:00:05]} 1-0

[Event "January 2 Early 2024"]
[Site "https://www.chess.com"]
[Date "2024.01.02"]
[Round "1"]
[White "Romero Ruscalleda, Josep"]
[Black "RobertDowneyJr0111"]
[Result "0-1"]
[Board "212"]
[TimeControl "180+1"]
[WhiteFideId "2231859"]
[WhiteElo "2285"]
[BlackElo "2633"]
[WhiteTeam "ESP"]
[WhiteClock "0:01:01"]
[BlackClock "0:00:56"]

1. e4 {[%clk 0:03:00]}  c6 {[%clk 0:02:59]} 2. Nc3 {[%clk 0:03:00]}  d5 {[%clk 0:02:59]} 3. Nf3 {[%clk 0:03:00]}  Bg4 {[%clk 0:02:58]} 4. h3 {[%clk 0:02:59]}  Bxf3 {[%clk 0:02:53]} 5. Qxf3 {[%clk 0:03:00]}  e6 {[%clk 0:02:52]} 6. d3 {[%clk 0:02:59]}  Nf6 {[%clk 0:02:51]} 7. Bd2 {[%clk 0:02:59]}  Nbd7 {[%clk 0:02:49]} 8. g3 {[%clk 0:02:55]}  Qb6 {[%clk 0:02:48]} 9. Rb1 {[%clk 0:02:48]}  d4 {[%clk 0:02:40]} 10. Ne2 {[%clk 0:02:45]}  e5 {[%clk 0:02:26]} 11. Bg2 {[%clk 0:02:42]}  Qa6 {[%clk 0:02:22]} 12. Nc1 {[%clk 0:02:31]}  Qa4 {[%clk 0:02:17]} 13. b3 {[%clk 0:02:30]}  Qa3 {[%clk 0:02:13]} 14. O-O {[%clk 0:02:29]}  Bb4 {[%clk 0:02:13]} 15. Qe2 {[%clk 0:02:25]}  Bxd2 {[%clk 0:02:11]} 16. Qxd2 {[%clk 0:02:24]}  Qd6 {[%clk 0:02:02]} 17. f4 {[%clk 0:02:21]}  O-O-O {[%clk 0:01:48]} 18. b4 {[%clk 0:02:20]}  Kb8 {[%clk 0:01:45]} 19. Nb3 {[%clk 0:02:19]}  Nh5 {[%clk 0:01:43]} 20. Kh2 {[%clk 0:02:04]}  exf4 {[%clk 0:01:42]} 21. gxf4 {[%clk 0:02:03]}  g5 {[%clk 0:01:41]} 22. e5 {[%clk 0:02:01]}  Qe7 {[%clk 0:01:35]} 23. Nxd4 {[%clk 0:01:33]}  Nxf4 {[%clk 0:01:32]} 24. Rbe1 {[%clk 0:01:26]}  Nxe5 {[%clk 0:01:24]} 25. Nf5 {[%clk 0:01:23]}  Qf6 {[%clk 0:01:21]} 26. Ng3 {[%clk 0:01:19]}  Rhe8 {[%clk 0:01:16]} 27. Ne4 {[%clk 0:01:09]}  Qh6 {[%clk 0:01:13]} 28. Nxg5 {[%clk 0:01:05]}  Qxg5 {[%clk 0:01:04]} 29. Qxf4 {[%clk 0:01:03]}  Qxf4+ {[%clk 0:01:03]} 30. Rxf4 {[%clk 0:01:02]}  Nf3+ {[%clk 0:00:59]} 31. Rxf3 {[%clk 0:01:02]}  Rxe1 {[%clk 0:01:00]} 32. Rxf7 {[%clk 0:01:01]}  h6 {[%clk 0:00:56]} 0-1

[Event "January 2 Early 2024"]
[Site "https://www.chess.com"]
[Date "2024.01.02"]
[Round "1"]
[White "Sipila, Vilka"]
[Black "Antonio, Jorge Carlos"]
[Result "1-0"]
[Board "215"]
[TimeControl "180+1"]
[WhiteFideId "505455"]
[BlackFideId "113190"]
[WhiteElo "2630"]
[BlackElo "2282"]
[WhiteTeam "FIN"]
[BlackTeam "ARG"]
[WhiteClock "0:02:40"]
[BlackClock "0:02:33"]

1. e4 {[%clk 0:02:59]}  c6 {[%clk 0:03:00]} 2. d4 {[%clk 0:02:59]}  d5 {[%clk 0:03:01]} 3. e5 {[%clk 0:02:59]}  Bf5 {[%clk 0:03:00]} 4. Nf3 {[%clk 0:02:59]}  e6 {[%clk 0:03:01]} 5. Be2 {[%clk 0:03:00]}  c5 {[%clk 0:03:01]} 6. Be3 {[%clk 0:02:58]}  Nc6 {[%clk 0:03:01]} 7. O-O {[%clk 0:02:52]}  cxd4 {[%clk 0:03:01]} 8. Nxd4 {[%clk 0:02:52]}  Nxd4 {[%clk 0:03:00]} 9. Bxd4 {[%clk 0:02:52]}  Qc7 {[%clk 0:02:58]} 10. Bb5+ {[%clk 0:02:50]}  Kd8 {[%clk 0:02:56]} 11. c4 {[%clk 0:02:49]}  a6 {[%clk 0:02:52]} 12. cxd5 {[%clk 0:02:42]}  axb5 {[%clk 0:02:50]} 13. dxe6 {[%clk 0:02:42]}  Qc2 {[%clk 0:02:40]} 14. Bb6+ {[%clk 0:02:40]}  Ke7 {[%clk 0:02:33]} 15. Qd7# {[%clk 0:02:40]} 1-0

[Event "January 2 Early 2024"]
[Site "https://www.chess.com"]
[Date "2024.01.02"]
[Round "1"]
[White "Tharushi, T H D Niklesha"]
[Black "Aaditya Dhingra"]
[Result "1/2-1/2"]
[Board "218"]
[TimeControl "180+1"]
[WhiteFideId "9918264"]
[BlackFideId "25678191"]
[WhiteElo "2281"]
[BlackElo "2628"]
[WhiteTeam "SRI"]
[BlackTeam "IND"]
[WhiteClock "0:00:24"]
[BlackClock "0:00:18"]

1. e4 {[%clk 0:03:00]}  g6 {[%clk 0:02:58]} 2. d4 {[%clk 0:03:00]}  Bg7 {[%clk 0:02:58]} 3. Nc3 {[%clk 0:02:59]}  c6 {[%clk 0:02:59]} 4. Nf3 {[%clk 0:02:56]}  d5 {[%clk 0:02:59]} 5. e5 {[%clk 0:02:56]}  h5 {[%clk 0:02:58]} 6. Bd3 {[%clk 0:02:54]}  Nh6 {[%clk 0:02:58]} 7. h3 {[%clk 0:02:50]}  Bf5 {[%clk 0:02:55]} 8. Be3 {[%clk 0:02:49]}  e6 {[%clk 0:02:50]} 9. Bg5 {[%clk 0:02:48]}  Qb6 {[%clk 0:02:46]} 10. Qd2 {[%clk 0:02:30]}  Bxd3 {[%clk 0:02:41]} 11. Qxd3 {[%clk 0:02:27]}  Qa6 {[%clk 0:02:40]} 12. Qd2 {[%clk 0:02:21]}  Nd7 {[%clk 0:02:37]} 13. Ne2 {[%clk 0:02:15]}  Nb6 {[%clk 0:02:31]} 14. c3 {[%clk 0:02:14]}  c5 {[%clk 0:02:16]} 15. O-O {[%clk 0:02:11]}  Rc8 {[%clk 0:02:14]} 16. b3 {[%clk 0:01:54]}  Nf5 {[%clk 0:02:08]} 17. Rac1 {[%clk 0:01:50]}  cxd4 {[%clk 0:01:58]} 18. cxd4 {[%clk 0:01:48]}  Kd7 {[%clk 0:01:59]} 19. Ng3 {[%clk 0:01:29]}  Bf8 {[%clk 0:01:48]} 20. Bf6 {[%clk 0:01:27]}  Bh6 {[%clk 0:01:39]} 21. Ng5 {[%clk 0:01:20]}  Rhe8 {[%clk 0:01:27]} 22. Nxf5 {[%clk 0:01:19]}  gxf5 {[%clk 0:01:26]} 23. f4 {[%clk 0:01:19]}  Bxg5 {[%clk 0:01:24]} 24. Bxg5 {[%clk 0:01:18]}  Rxc1 {[%clk 0:01:22]} 25. Rxc1 {[%clk 0:01:16]}  Rc8 {[%clk 0:01:21]} 26. Rxc8 {[%clk 0:01:15]}  Nxc8 {[%clk 0:01:21]} 27. a4 {[%clk 0:01:10]}  Qb6 {[%clk 0:01:19]} 28. Qd1 {[%clk 0:01:09]}  Qb4 {[%clk 0:01:17]} 29. Kh2 {[%clk 0:01:07]}  Ke8 {[%clk 0:01:12]} 30. Qxh5 {[%clk 0:01:05]}  Qf8 {[%clk 0:01:01]} 31. Bf6 {[%clk 0:01:02]}  Nb6 {[%clk 0:01:00]} 32. Qh8 {[%clk 0:00:56]}  Nd7 {[%clk 0:00:56]} 33. Qxf8+ {[%clk 0:00:53]}  Kxf8 {[%clk 0:00:57]} 34. Bh4 {[%clk 0:00:53]}  Kg7 {[%clk 0:00:46]} 35. g4 {[%clk 0:00:52]}  Kg6 {[%clk 0:00:45]} 36. Kg3 {[%clk 0:00:51]}  b6 {[%clk 0:00:44]} 37. Bd8 {[%clk 0:00:46]}  a6 {[%clk 0:00:43]} 38. h4 {[%clk 0:00:44]}  fxg4 {[%clk 0:00:41]} 39. Kxg4 {[%clk 0:00:44]}  b5 {[%clk 0:00:41]} 40. h5+ {[%clk 0:00:43]}  Kh6 {[%clk 0:00:41]} 41. a5 {[%clk 0:00:37]}  Nb8 {[%clk 0:00:40]} 42. Be7 {[%clk 0:00:31]}  Nc6 {[%clk 0:00:40]} 43. Bf8+ {[%clk 0:00:31]}  Kh7 {[%clk 0:00:39]} 44. Bc5 {[%clk 0:00:25]}  Nxa5 {[%clk 0:00:39]} 45. b4 {[%clk 0:00:26]}  Nc6 {[%clk 0:00:36]} 46. Kg5 {[%clk 0:00:26]}  a5 {[%clk 0:00:34]} 47. bxa5 {[%clk 0:00:26]}  Nxa5 {[%clk 0:00:34]} 48. Kf6 {[%clk 0:00:25]}  Kg8 {[%clk 0:00:35]} 49. h6 {[%clk 0:00:24]}  Nc6 {[%clk 0:00:33]} 50. h7+ {[%clk 0:00:24]}  Kxh7 {[%clk 0:00:34]} 51. Kxf7 {[%clk 0:00:24]}  b4 {[%clk 0:00:34]} 52. Kxe6 {[%clk 0:00:24]}  b3 {[%clk 0:00:33]} 53. Ba3 {[%clk 0:00:25]}  Nxd4+ {[%clk 0:00:32]} 54. Kxd5 {[%clk 0:00:25]}  Nf5 {[%clk 0:00:20]} 55. Kc4 {[%clk 0:00:21]}  Kg6 {[%clk 0:00:18]} 56. Kxb3 {[%clk 0:00:21]}  Nd4+ {[%clk 0:00:16]} 57. Kc4 {[%clk 0:00:21]}  Ne6 {[%clk 0:00:16]} 58. Bc1 {[%clk 0:00:20]}  Kf5 {[%clk 0:00:17]} 59. Kd5 {[%clk 0:00:21]}  Ng7 {[%clk 0:00:17]} 60. Kd6 {[%clk 0:00:21]}  Ne6 {[%clk 0:00:18]} 61. Ke7 {[%clk 0:00:22]}  Nd4 {[%clk 0:00:18]} 62. Be3 {[%clk 0:00:21]}  Ne6 {[%clk 0:00:17]} 63. Kf7 {[%clk 0:00:21]}  Nc7 {[%clk 0:00:17]} 64. Bb6 {[%clk 0:00:20]}  Ne6 {[%clk 0:00:17]} 65. Be3 {[%clk 0:00:21]}  Nc7 {[%clk 0:00:17]} 66. Ke7 {[%clk 0:00:21]}  Nd5+ {[%clk 0:00:17]} 67. Kd6 {[%clk 0:00:22]}  Nxe3 {[%clk 0:00:17]} 68. e6 {[%clk 0:00:22]}  Kf6 {[%clk 0:00:16]} 69. e7 {[%clk 0:00:23]}  Nf5+ {[%clk 0:00:16]} 70. Kd7 {[%clk 0:00:23]}  Nxe7 {[%clk 0:00:17]} 71. f5 {[%clk 0:00:24]}  Nxf5 {[%clk 0:00:18]} 1/2-1/2

[Event "January 2 Early 2024"]
[Site "https://www.chess.com"]
[Date "2024.01.02"]
[Round "1"]
[White "Povshednyi, Ivan"]
[Black "Monpeurt, Cyrielle"]
[Result "1-0"]
[Board "221"]
[TimeControl "180+1"]
[WhiteFideId "14190907"]
[BlackFideId "677400"]
[WhiteElo "2625"]
[BlackElo "2276"]
[WhiteTeam "UKR"]
[BlackTeam "FRA"]
[WhiteClock "0:00:29"]
[BlackClock "0:00:15"]

1. Nf3 {[%clk 0:03:00]}  c5 {[%clk 0:02:59]} 2. g3 {[%clk 0:03:00]}  Nc6 {[%clk 0:02:59]} 3. Bg2 {[%clk 0:03:01]}  g6 {[%clk 0:02:59]} 4. c3 {[%clk 0:03:01]}  Bg7 {[%clk 0:02:59]} 5. d4 {[%clk 0:03:02]}  cxd4 {[%clk 0:02:55]} 6. cxd4 {[%clk 0:03:03]}  d5 {[%clk 0:02:54]} 7. O-O {[%clk 0:03:03]}  Nf6 {[%clk 0:02:52]} 8. Ne5 {[%clk 0:03:03]}  O-O {[%clk 0:02:50]} 9. Nc3 {[%clk 0:03:03]}  a6 {[%clk 0:02:47]} 10. Nxc6 {[%clk 0:03:03]}  bxc6 {[%clk 0:02:47]} 11. Na4 {[%clk 0:03:04]}  Nd7 {[%clk 0:02:41]} 12. Bf4 {[%clk 0:03:03]}  h6 {[%clk 0:02:31]} 13. Rc1 {[%clk 0:02:58]}  g5 {[%clk 0:02:31]} 14. Be3 {[%clk 0:02:57]}  Bb7 {[%clk 0:02:22]} 15. Qd2 {[%clk 0:02:53]}  e5 {[%clk 0:02:19]} 16. dxe5 {[%clk 0:02:51]}  Nxe5 {[%clk 0:02:18]} 17. b3 {[%clk 0:02:50]}  f5 {[%clk 0:02:11]} 18. Nc5 {[%clk 0:02:48]}  Qe7 {[%clk 0:02:01]} 19. Bd4 {[%clk 0:02:37]}  Rae8 {[%clk 0:01:50]} 20. Bxe5 {[%clk 0:02:22]}  Bxe5 {[%clk 0:01:49]} 21. Nxb7 {[%clk 0:02:22]}  Qxb7 {[%clk 0:01:48]} 22. Rxc6 {[%clk 0:02:20]}  Kh7 {[%clk 0:01:26]} 23. Bxd5 {[%clk 0:02:01]}  Rd8 {[%clk 0:01:25]} 24. Qa5 {[%clk 0:01:35]}  Qb5 {[%clk 0:01:04]} 25. Qxb5 {[%clk 0:01:20]}  axb5 {[%clk 0:01:05]} 26. Rc5 {[%clk 0:01:12]}  b4 {[%clk 0:01:05]} 27. Bg8+ {[%clk 0:01:06]}  Kxg8 {[%clk 0:01:04]} 28. Rxe5 {[%clk 0:01:07]}  Rd2 {[%clk 0:01:04]} 29. e3 {[%clk 0:00:56]}  Rxa2 {[%clk 0:01:00]} 30. Rb5 {[%clk 0:00:55]}  f4 {[%clk 0:00:55]} 31. gxf4 {[%clk 0:00:46]}  gxf4 {[%clk 0:00:55]} 32. Rxb4 {[%clk 0:00:47]}  fxe3 {[%clk 0:00:46]} 33. fxe3 {[%clk 0:00:47]}  Rxf1+ {[%clk 0:00:34]} 34. Kxf1 {[%clk 0:00:48]}  Rxh2 {[%clk 0:00:34]} 35. Rb7 {[%clk 0:00:47]}  Rb2 {[%clk 0:00:31]} 36. b4 {[%clk 0:00:46]}  h5 {[%clk 0:00:31]} 37. b5 {[%clk 0:00:45]}  h4 {[%clk 0:00:30]} 38. b6 {[%clk 0:00:41]}  h3 {[%clk 0:00:30]} 39. Kg1 {[%clk 0:00:42]}  Rb3 {[%clk 0:00:24]} 40. Kh2 {[%clk 0:00:26]}  Rxe3 {[%clk 0:00:23]} 41. Rc7 {[%clk 0:00:27]}  Rb3 {[%clk 0:00:21]} 42. b7 {[%clk 0:00:27]}  Kf8 {[%clk 0:00:19]} 43. Rc8+ {[%clk 0:00:27]}  Kg7 {[%clk 0:00:18]} 44. b8=Q {[%clk 0:00:28]}  Rxb8 {[%clk 0:00:15]} 45. Rxb8 {[%clk 0:00:29]} 1-0

[Event "January 2 Early 2024"]
[Site "https://www.chess.com"]
[Date "2024.01.02"]
[Round "1"]
[White "Deveci, Huseyin Said"]
[Black "Zavgorodniy, Sergiy"]
[Result "0-1"]
[Board "222"]
[TimeControl "180+1"]
[WhiteFideId "26322455"]
[BlackFideId "14110148"]
[WhiteElo "2276"]
[BlackElo "2624"]
[WhiteTeam "TUR"]
[BlackTeam "UKR"]
[WhiteClock "0:00:02"]
[BlackClock "0:00:15"]

1. e4 {[%clk 0:02:47]}  e5 {[%clk 0:02:58]} 2. Nf3 {[%clk 0:02:46]}  d6 {[%clk 0:02:58]} 3. d4 {[%clk 0:02:46]}  exd4 {[%clk 0:02:59]} 4. Nxd4 {[%clk 0:02:47]}  Nf6 {[%clk 0:02:59]} 5. Nc3 {[%clk 0:02:48]}  Be7 {[%clk 0:02:58]} 6. Bc4 {[%clk 0:02:46]}  O-O {[%clk 0:02:58]} 7. O-O {[%clk 0:02:46]}  c6 {[%clk 0:02:58]} 8. Bb3 {[%clk 0:02:46]}  Na6 {[%clk 0:02:55]} 9. a3 {[%clk 0:02:31]}  Nc5 {[%clk 0:02:55]} 10. Re1 {[%clk 0:02:32]}  Nxb3 {[%clk 0:02:52]} 11. Nxb3 {[%clk 0:02:32]}  Re8 {[%clk 0:02:51]} 12. Bf4 {[%clk 0:02:30]}  Ng4 {[%clk 0:02:43]} 13. Bg3 {[%clk 0:02:23]}  Ne5 {[%clk 0:02:39]} 14. Qe2 {[%clk 0:02:16]}  b5 {[%clk 0:02:34]} 15. Nd4 {[%clk 0:02:09]}  Qc7 {[%clk 0:02:31]} 16. Nf5 {[%clk 0:01:57]}  Bf8 {[%clk 0:02:22]} 17. Rad1 {[%clk 0:01:45]}  g6 {[%clk 0:02:16]} 18. Ne3 {[%clk 0:01:40]}  h5 {[%clk 0:02:06]} 19. h3 {[%clk 0:01:19]}  Be6 {[%clk 0:01:51]} 20. f4 {[%clk 0:01:12]}  Nc4 {[%clk 0:01:51]} 21. f5 {[%clk 0:01:12]}  Nxe3 {[%clk 0:01:51]} 22. Qxe3 {[%clk 0:01:10]}  Bxf5 {[%clk 0:01:50]} 23. Qd4 {[%clk 0:01:02]}  Be6 {[%clk 0:01:41]} 24. Bxd6 {[%clk 0:01:01]}  Bxd6 {[%clk 0:01:31]} 25. Qxd6 {[%clk 0:01:01]}  Qb6+ {[%clk 0:01:31]} 26. Kh1 {[%clk 0:00:59]}  Rad8 {[%clk 0:01:29]} 27. Qf4 {[%clk 0:00:58]}  Qc5 {[%clk 0:01:06]} 28. Qf6 {[%clk 0:00:51]}  Rxd1 {[%clk 0:01:00]} 29. Rxd1 {[%clk 0:00:51]}  Qe3 {[%clk 0:00:53]} 30. Qd4 {[%clk 0:00:45]}  Qxd4 {[%clk 0:00:51]} 31. Rxd4 {[%clk 0:00:46]}  Kf8 {[%clk 0:00:51]} 32. Kg1 {[%clk 0:00:47]}  Ke7 {[%clk 0:00:50]} 33. Kf2 {[%clk 0:00:47]}  h4 {[%clk 0:00:48]} 34. Rd2 {[%clk 0:00:45]}  Rh8 {[%clk 0:00:44]} 35. Ke3 {[%clk 0:00:42]}  Rh5 {[%clk 0:00:44]} 36. Ne2 {[%clk 0:00:41]}  Re5 {[%clk 0:00:36]} 37. Nd4 {[%clk 0:00:40]}  Bd7 {[%clk 0:00:36]} 38. Nf3 {[%clk 0:00:40]}  Rh5 {[%clk 0:00:34]} 39. Kf4 {[%clk 0:00:35]}  a5 {[%clk 0:00:33]} 40. Ne5 {[%clk 0:00:19]}  Be8 {[%clk 0:00:32]} 41. Nf3 {[%clk 0:00:19]}  f6 {[%clk 0:00:31]} 42. c3 {[%clk 0:00:11]}  g5+ {[%clk 0:00:31]} 43. Ke3 {[%clk 0:00:11]}  Rh8 {[%clk 0:00:28]} 44. Nd4 {[%clk 0:00:11]}  Bd7 {[%clk 0:00:28]} 45. Nb3 {[%clk 0:00:11]}  a4 {[%clk 0:00:27]} 46. Nc5 {[%clk 0:00:12]}  Bc8 {[%clk 0:00:28]} 47. Rd4 {[%clk 0:00:07]}  Rg8 {[%clk 0:00:28]} 48. Nd3 {[%clk 0:00:05]}  g4 {[%clk 0:00:27]} 49. hxg4 {[%clk 0:00:06]}  Rxg4 {[%clk 0:00:27]} 50. Nf4 {[%clk 0:00:07]}  Rg3+ {[%clk 0:00:26]} 51. Kf2 {[%clk 0:00:07]}  Bd7 {[%clk 0:00:24]} 52. Rd3 {[%clk 0:00:07]}  Rg4 {[%clk 0:00:25]} 53. Kf3 {[%clk 0:00:06]}  Rg5 {[%clk 0:00:21]} 54. Kf2 {[%clk 0:00:06]}  Be8 {[%clk 0:00:21]} 55. Re3 {[%clk 0:00:05]}  Bf7 {[%clk 0:00:20]} 56. Nd3 {[%clk 0:00:05]}  Bc4 {[%clk 0:00:19]} 57. Nf4 {[%clk 0:00:05]}  Rg4 {[%clk 0:00:18]} 58. Kf3 {[%clk 0:00:06]}  Rg5 {[%clk 0:00:19]} 59. Kf2 {[%clk 0:00:06]}  Bb3 {[%clk 0:00:19]} 60. Kf3 {[%clk 0:00:06]}  Bd1+ {[%clk 0:00:19]} 61. Kf2 {[%clk 0:00:06]}  Rg4 {[%clk 0:00:19]} 62. Nd3 {[%clk 0:00:06]}  Bc2 {[%clk 0:00:18]} 63. Nc5 {[%clk 0:00:07]}  Bb1 {[%clk 0:00:18]} 64. e5 {[%clk 0:00:06]}  f5 {[%clk 0:00:17]} 65. e6 {[%clk 0:00:05]}  Rc4 {[%clk 0:00:17]} 66. Na6 {[%clk 0:00:04]}  Re4 {[%clk 0:00:17]} 67. Rxe4 {[%clk 0:00:04]}  Bxe4 {[%clk 0:00:18]} 68. Nc5 {[%clk 0:00:04]}  Bd5 {[%clk 0:00:18]} 69. Ke3 {[%clk 0:00:04]}  Kd6 {[%clk 0:00:18]} 70. e7 {[%clk 0:00:04]}  Kxe7 {[%clk 0:00:17]} 71. Kf4 {[%clk 0:00:05]}  Bxg2 {[%clk 0:00:16]} 72. Nd3 {[%clk 0:00:05]}  h3 {[%clk 0:00:17]} 73. Kg3 {[%clk 0:00:05]}  Kf6 {[%clk 0:00:16]} 74. Nf4 {[%clk 0:00:05]}  Ke5 {[%clk 0:00:16]} 75. Nd3+ {[%clk 0:00:04]}  Ke4 {[%clk 0:00:16]} 76. Nb4 {[%clk 0:00:03]}  f4+ {[%clk 0:00:15]} 77. Kh2 {[%clk 0:00:03]}  f3 {[%clk 0:00:15]} 78. Nxc6 {[%clk 0:00:03]}  f2 {[%clk 0:00:15]} 79. Nd4 {[%clk 0:00:02]}  f1=Q {[%clk 0:00:15]} 80. Nf3 {[%clk 0:00:02]}  Qxf3 {[%clk 0:00:15]} 0-1

[Event "January 2 Early 2024"]
[Site "https://www.chess.com"]
[Date "2024.01.02"]
[Round "1"]
[White "Antunez Soler, Luis"]
[Black "Minina, Veronika"]
[Result "1-0"]
[Board "223"]
[TimeControl "180+1"]
[WhiteFideId "3513335"]
[BlackFideId "4174780"]
[WhiteElo "2624"]
[BlackElo "2273"]
[WhiteTeam "CUB"]
[BlackTeam "RUS"]
[WhiteClock "0:00:26"]
[BlackClock "0:00:00"]

1. e4 {[%clk 0:03:00]}  c5 {[%clk 0:02:59]} 2. Nf3 {[%clk 0:03:01]}  Nc6 {[%clk 0:02:59]} 3. Bb5 {[%clk 0:03:01]}  e6 {[%clk 0:02:52]} 4. c3 {[%clk 0:03:01]}  Nge7 {[%clk 0:02:50]} 5. d4 {[%clk 0:03:01]}  d5 {[%clk 0:02:43]} 6. e5 {[%clk 0:03:01]}  a6 {[%clk 0:02:39]} 7. Bd3 {[%clk 0:03:00]}  Qb6 {[%clk 0:02:36]} 8. dxc5 {[%clk 0:02:51]}  Qxc5 {[%clk 0:02:33]} 9. b4 {[%clk 0:02:46]}  Qb6 {[%clk 0:02:31]} 10. Na3 {[%clk 0:02:46]}  Qc7 {[%clk 0:02:27]} 11. Qe2 {[%clk 0:02:44]}  Ng6 {[%clk 0:02:26]} 12. Bxg6 {[%clk 0:02:40]}  hxg6 {[%clk 0:02:26]} 13. O-O {[%clk 0:02:37]}  Be7 {[%clk 0:02:20]} 14. b5 {[%clk 0:02:32]}  Na5 {[%clk 0:02:03]} 15. Rb1 {[%clk 0:02:23]}  Bd7 {[%clk 0:02:00]} 16. bxa6 {[%clk 0:02:17]}  Rxa6 {[%clk 0:02:00]} 17. Nd4 {[%clk 0:02:03]}  O-O {[%clk 0:01:49]} 18. Nab5 {[%clk 0:02:02]}  Bxb5 {[%clk 0:01:44]} 19. Qxb5 {[%clk 0:01:44]}  Qxc3 {[%clk 0:01:32]} 20. Be3 {[%clk 0:01:43]}  Qc4 {[%clk 0:01:17]} 21. Qd7 {[%clk 0:01:43]}  Ba3 {[%clk 0:01:00]} 22. Nb5 {[%clk 0:01:31]}  Qc6 {[%clk 0:00:44]} 23. Qxc6 {[%clk 0:01:24]}  Nxc6 {[%clk 0:00:45]} 24. Nxa3 {[%clk 0:01:24]}  Rxa3 {[%clk 0:00:37]} 25. Bc5 {[%clk 0:01:24]}  Rxa2 {[%clk 0:00:35]} 26. Bxf8 {[%clk 0:01:25]}  Kxf8 {[%clk 0:00:35]} 27. Rxb7 {[%clk 0:01:25]}  Nxe5 {[%clk 0:00:35]} 28. Rc1 {[%clk 0:01:20]}  Kg8 {[%clk 0:00:29]} 29. h3 {[%clk 0:01:08]}  g5 {[%clk 0:00:28]} 30. Rc8+ {[%clk 0:01:06]}  Kh7 {[%clk 0:00:29]} 31. Rd8 {[%clk 0:01:01]}  Kg6 {[%clk 0:00:28]} 32. Rb3 {[%clk 0:00:57]}  Ra1+ {[%clk 0:00:27]} 33. Kh2 {[%clk 0:00:56]}  Ra2 {[%clk 0:00:27]} 34. Kg3 {[%clk 0:00:52]}  Kf6 {[%clk 0:00:27]} 35. Rdb8 {[%clk 0:00:47]}  Ra4 {[%clk 0:00:22]} 36. R8b4 {[%clk 0:00:44]}  Ra2 {[%clk 0:00:22]} 37. f4 {[%clk 0:00:37]}  gxf4+ {[%clk 0:00:23]} 38. Rxf4+ {[%clk 0:00:37]}  Kg6 {[%clk 0:00:22]} 39. Rf2 {[%clk 0:00:38]}  Ra4 {[%clk 0:00:21]} 40. Rb7 {[%clk 0:00:30]}  Re4 {[%clk 0:00:20]} 41. Kh2 {[%clk 0:00:27]}  Re2 {[%clk 0:00:00]} 42. Rxe2 {[%clk 0:00:26]} 1-0

[Event "January 2 Early 2024"]
[Site "https://www.chess.com"]
[Date "2024.01.02"]
[Round "1"]
[White "Souleidis, Georgios"]
[Black "Burdalev, Kirill"]
[Result "1-0"]
[Board "225"]
[TimeControl "180+1"]
[WhiteFideId "4206827"]
[BlackFideId "14121913"]
[WhiteElo "2620"]
[BlackElo "2271"]
[WhiteTeam "GRE"]
[BlackTeam "CZE"]
[WhiteClock "0:00:58"]
[BlackClock "0:00:00"]

1. e4 {[%clk 0:03:00]}  e5 {[%clk 0:02:50]} 2. Nf3 {[%clk 0:03:00]}  Nc6 {[%clk 0:02:47]} 3. Bc4 {[%clk 0:03:00]}  Bc5 {[%clk 0:02:46]} 4. d3 {[%clk 0:02:59]}  Nf6 {[%clk 0:02:44]} 5. a4 {[%clk 0:02:59]}  O-O {[%clk 0:02:43]} 6. O-O {[%clk 0:02:59]}  a5 {[%clk 0:02:35]} 7. Be3 {[%clk 0:02:59]}  Bxe3 {[%clk 0:02:29]} 8. fxe3 {[%clk 0:03:00]}  d6 {[%clk 0:02:29]} 9. Nbd2 {[%clk 0:02:59]}  Ne7 {[%clk 0:02:28]} 10. Bb3 {[%clk 0:02:53]}  Ng6 {[%clk 0:02:26]} 11. Qe1 {[%clk 0:02:50]}  c6 {[%clk 0:02:22]} 12. Nh4 {[%clk 0:02:48]}  Nxh4 {[%clk 0:02:11]} 13. Qxh4 {[%clk 0:02:49]}  Be6 {[%clk 0:02:06]} 14. Bxe6 {[%clk 0:02:38]}  fxe6 {[%clk 0:02:07]} 15. Qh3 {[%clk 0:02:38]}  Qe7 {[%clk 0:02:05]} 16. Nc4 {[%clk 0:02:38]}  Nd7 {[%clk 0:01:57]} 17. Rxf8+ {[%clk 0:02:36]}  Nxf8 {[%clk 0:01:58]} 18. Rf1 {[%clk 0:02:34]}  Nd7 {[%clk 0:01:57]} 19. b3 {[%clk 0:02:30]}  d5 {[%clk 0:01:51]} 20. Nd2 {[%clk 0:02:14]}  Rf8 {[%clk 0:01:50]} 21. Rxf8+ {[%clk 0:02:03]}  Nxf8 {[%clk 0:01:51]} 22. Qg3 {[%clk 0:02:02]}  Qf6 {[%clk 0:01:48]} 23. Nf3 {[%clk 0:01:53]}  Nd7 {[%clk 0:00:59]} 24. exd5 {[%clk 0:01:53]}  exd5 {[%clk 0:00:58]} 25. Qg4 {[%clk 0:01:54]}  Qf7 {[%clk 0:00:51]} 26. Ng5 {[%clk 0:01:50]}  Qe7 {[%clk 0:00:51]} 27. Qf5 {[%clk 0:01:48]}  g6 {[%clk 0:00:39]} 28. Qe6+ {[%clk 0:01:43]}  Qxe6 {[%clk 0:00:36]} 29. Nxe6 {[%clk 0:01:44]}  b6 {[%clk 0:00:18]} 30. Kf2 {[%clk 0:01:37]}  c5 {[%clk 0:00:17]} 31. Nc7 {[%clk 0:01:25]}  Nf6 {[%clk 0:00:16]} 32. Na8 {[%clk 0:01:20]}  Nd7 {[%clk 0:00:16]} 33. Kf3 {[%clk 0:01:20]}  Kf7 {[%clk 0:00:16]} 34. Nc7 {[%clk 0:01:20]}  Nf6 {[%clk 0:00:15]} 35. e4 {[%clk 0:01:13]}  dxe4+ {[%clk 0:00:14]} 36. dxe4 {[%clk 0:01:14]}  Ke7 {[%clk 0:00:15]} 37. Nd5+ {[%clk 0:01:05]}  Nxd5 {[%clk 0:00:11]} 38. exd5 {[%clk 0:01:06]}  Kd6 {[%clk 0:00:08]} 39. Ke4 {[%clk 0:01:04]}  b5 {[%clk 0:00:05]} 40. axb5 {[%clk 0:01:04]}  c4 {[%clk 0:00:05]} 41. b6 {[%clk 0:01:00]}  cxb3 {[%clk 0:00:01]} 42. cxb3 {[%clk 0:01:00]}  h5 {[%clk 0:00:02]} 43. h4 {[%clk 0:00:59]}  Kd7 {[%clk 0:00:01]} 44. Kxe5 {[%clk 0:00:59]}  Ke7 {[%clk 0:00:00]} 45. b7 {[%clk 0:00:58]} 1-0